bitfinex-derivatives/quotes_SOLF0:USTF0_20250603
["timestamp","ask_amount","ask_price","bid_price","bid_amount"]
[1748966238380,542.21633347,162.15,162.11,6.1647]
[1748966238381,5.39806026,162.14,162.11,6.1647]
[1748966238676,14.93439373,162.13,162.06,9.53633347]
[1748966238882,0.04316956,162.11,162.1,6.1648]
[1748966239488,9.57950303,162.11,162.08,0.04236366]
[1748966239677,9.53633347,162.09,162.08,0.04236366]
[1748966240484,14.93293279,162.09,162.08,0.04236366]
[1748966240684,9.53633347,162.09,162.08,0.04236366]
[1748966240880,14.93293279,162.09,162.08,0.04236366]
[1748966241080,14.93293279,162.09,162.08,6.20816366]
[1748966241081,9.53633347,162.09,162.08,6.20816366]
[1748966241881,5.41479392,162.1,162.08,0.04236366]
[1748966242081,47.78500303,162.11,162.08,0.04236366]
[1748966242379,5.41555173,162.1,162.08,0.04236366]
[1748966242584,5.41555173,162.09,162.08,0.04236366]
[1748966242784,5.41555173,162.1,162.08,0.04236366]
[1748966242988,5.41555173,162.09,162.08,0.04236366]
[1748966244479,5.41555173,162.09,162.08,6.20816366]
[1748966245993,43.67950303,162.11,162.09,6.1654]
[1748966246178,43.67950303,162.11,162.08,0.04236366]
[1748966246179,5.42461193,162.1,162.08,0.04236366]
[1748966246383,5.42461193,162.09,162.08,0.04236366]
[1748966246785,5.42461193,162.09,162.08,6.20816366]
[1748966246981,43.67950303,162.11,162.08,0.04236366]
[1748966247193,5.42653493,162.1,162.08,0.04236366]
[1748966247387,5.4280616,162.09,162.08,6.20816366]
[1748966247589,5.4280616,162.09,162.08,0.04236366]
[1748966248092,5.4280616,162.09,162.08,6.20816366]
[1748966248394,14.96439507,162.09,162.08,0.04236366]
[1748966248797,6.166,162.08,162.01,34.1]
[1748966249093,9.53633347,162.06,162.04,6.1671]
[1748966249293,9.53633347,162.06,162.01,34.1]
[1748966249494,2.0009,162.09,162.01,43.63633347]
[1748966249801,19.07744655,162.22,162.05,9.53633347]
[1748966249802,0.04417997,162.07,162.05,9.53633347]
[1748966250101,0.04417997,162.07,162.06,6.1666]
[1748966252501,7.997e-05,162.07,162.06,6.1666]
[1748966252690,5.73150638,162.16,162.06,49.24635525]
[1748966252886,5.36572275,162.15,162.1,9.53633347]
[1748966253198,5.36572275,162.14,162.13,6.1639]
[1748966253493,5.3669652,162.14,162.13,6.1639]
[1748966256903,0.04254675,162.15,162.14,6.1636]
[1748966257192,2.0381,162.19,162.13,15.90716159]
[1748966257193,5.73706555,162.19,162.13,15.90716159]
[1748966257397,554.46477567,162.23,162.13,15.90716159]
[1748966257593,39.81761408,162.24,162.15,15.90716159]
[1748966257800,39.81761408,162.24,162.23,6.1601]
[1748966258194,34.08,162.24,162.23,6.1601]
[1748966259793,34.08,162.24,162.22,0.04272377]
[1748966260898,40.2398,162.24,162.22,0.04272377]
[1748966261090,15.90716159,162.23,162.14,2.0293]
[1748966261298,15.90716159,162.2,162.12,34.08]
[1748966261495,15.90716159,162.2,162.17,6.1623]
[1748966262101,49.92703609,162.2,162.17,0.03894551]
[1748966263404,49.92703609,162.2,162.17,6.20104551]
[1748966264003,49.92703609,162.2,162.17,0.03894551]
[1748966264398,56.08833609,162.2,162.17,0.03894551]
[1748966264806,49.92703609,162.2,162.17,0.03894551]
[1748966265202,15.90716159,162.18,162.17,0.03894551]
[1748966266501,22.06916159,162.18,162.17,0.03894551]
[1748966267806,6.1624,162.17,162.13,6.1638]
[1748966268108,15.90716159,162.16,162.13,6.1638]
[1748966268812,15.94889071,162.16,162.13,0.04676757]
[1748966269406,15.94889071,162.16,162.13,6.21036757]
[1748966270105,15.94889071,162.16,162.14,6.1635]
[1748966271008,15.94889071,162.16,162.13,0.04676757]
[1748966271701,0.04172912,162.16,162.13,0.04676757]
[1748966272210,0.04172912,162.16,162.14,6.1633]
[1748966272509,0.04172912,162.16,162.13,0.04676757]
[1748966272908,0.04172912,162.16,162.13,6.21046757]
[1748966274409,0.04172912,162.16,162.14,6.1635]
[1748966274908,0.04172912,162.16,162.15,6.1631]
[1748966278800,0.04172912,162.16,162.14,6.1634]
[1748966279006,0.04172912,162.16,162.13,0.04676757]
[1748966280211,0.04172912,162.16,162.15,6.1631]
[1748966280715,0.04172912,162.16,162.14,6.1633]
[1748966281012,0.04172912,162.16,162.13,0.04676757]
[1748966281311,0.04172912,162.16,162.15,6.1631]
[1748966281510,9.54505301,162.22,162.14,9.54505301]
[1748966281711,5.25926905,162.21,162.16,9.54505301]
[1748966281911,5.25926905,162.2,162.16,9.54505301]
[1748966282213,5.25926905,162.22,162.16,9.54505301]
[1748966282407,5.25926905,162.21,162.16,9.54505301]
[1748966282714,0.0412206,162.2,162.17,0.0445074]
[1748966283509,0.0412206,162.2,162.19,6.1614]
[1748966286010,0.0412206,162.2,162.17,0.0445074]
[1748966286415,0.0412206,162.2,162.19,6.1616]
[1748966291914,532.54,162.25,162.23,6.1599]
[1748966292120,5.25733526,162.24,162.23,6.1599]
[1748966292712,5.25733526,162.24,162.19,9.54505301]
[1748966292914,5.25733526,162.23,162.19,9.54505301]
[1748966293119,0.04536549,162.23,162.2,0.04285175]
[1748966293417,5.25888255,162.22,162.2,0.04285175]
[1748966293619,0.04536549,162.23,162.2,6.20385175]
[1748966293810,5.25878718,162.22,162.2,0.04285175]
[1748966294013,0.04536549,162.23,162.2,0.04285175]
[1748966294214,5.25878718,162.22,162.2,0.04285175]
[1748966294409,0.04536549,162.23,162.2,0.04285175]
[1748966294612,5.26807167,162.22,162.2,0.04285175]
[1748966294811,0.04536549,162.23,162.2,0.04285175]
[1748966295218,5.27010973,162.22,162.2,0.04285175]
[1748966295418,0.04536549,162.23,162.2,0.04285175]
[1748966295717,0.04536549,162.23,162.22,6.1605]
[1748966295927,5.31503853,162.23,162.22,6.1605]
[1748966298520,5.31503853,162.23,162.21,6.1607]
[1748966298718,5.26967304,162.22,162.21,6.1607]
[1748966299620,0.04536549,162.23,162.22,6.1605]
[1748966299820,5.31674967,162.23,162.22,6.1605]
[1748966303125,5.31674967,162.23,162.2,0.04285175]
[1748966303321,5.27138418,162.22,162.2,0.04285175]
[1748966303627,5.27856823,162.21,162.2,0.04285175]
[1748966304721,5.27856823,162.21,162.2,6.20405175]
[1748966307626,0.04536549,162.23,162.21,6.1608]
[1748966307925,5.28646238,162.22,162.21,6.1608]
[1748966308130,5.28646238,162.22,162.2,6.20395175]
[1748966308324,5.28646238,162.21,162.2,6.20395175]
[1748966310220,5.28646238,162.21,162.2,0.04285175]
[1748966310732,5.28236511,162.21,162.2,0.04285175]
[1748966311527,5.28256507,162.21,162.2,0.04285175]
[1748966314529,11.44336507,162.21,162.2,0.04285175]
[1748966314734,5.28256507,162.21,162.2,0.04285175]
[1748966315229,5.28256507,162.21,162.17,1.98519815]
[1748966315430,9.54505301,162.18,162.1,3.62927819]
[1748966315631,9.54505301,162.14,162.11,6.1644]
[1748966315837,5.28428132,162.13,162.09,3.62927819]
[1748966316032,5.28428132,162.12,162.08,3.62927819]
[1748966316236,9.58522651,162.12,162.09,6.1652]
[1748966316431,9.58522651,162.12,162.08,0.04411137]
[1748966316640,5.28141165,162.11,162.08,6.20961137]
[1748966316841,9.58522651,162.12,162.08,0.04411137]
[1748966317039,5.26398003,162.11,162.08,0.04411137]
[1748966317336,9.58522651,162.12,162.08,0.04411137]
[1748966317532,5.26219483,162.11,162.08,0.04411137]
[1748966317733,9.58522651,162.12,162.08,0.04411137]
[1748966317930,5.26221837,162.11,162.08,0.04411137]
[1748966318136,9.58522651,162.12,162.09,6.1652]
[1748966318443,5.26901063,162.11,162.09,6.1652]
[1748966318642,9.58522651,162.12,162.09,6.1652]
[1748966318842,5.26046166,162.11,162.09,6.1652]
[1748966319047,9.58522651,162.12,162.09,6.1652]
[1748966319243,9.58522651,162.12,162.08,6.20971137]
[1748966320240,15.74952651,162.12,162.08,6.20971137]
[1748966321739,9.58522651,162.12,162.08,6.20971137]
[1748966322046,5.25242135,162.11,162.08,6.20971137]
[1748966322344,9.58522651,162.12,162.09,6.1654]
[1748966322532,5.25059396,162.11,162.09,6.1654]
[1748966322734,9.58522651,162.12,162.09,6.1654]
[1748966322944,5.25121748,162.11,162.1,6.165]
[1748966323248,9.58522651,162.12,162.08,0.04411137]
[1748966323249,14.83509121,162.12,162.08,0.04411137]
[1748966323542,5.2876843,162.12,162.08,0.04411137]
[1748966323741,5.2876838,162.12,162.08,0.04411137]
[1748966324038,0.0401735,162.12,162.08,0.04411137]
[1748966325143,0.0401735,162.12,162.11,6.1646]
[1748966325536,0.0401735,162.12,162.1,6.1649]
[1748966325737,0.0401735,162.12,162.08,0.04411137]
[1748966325738,5.28638748,162.12,162.08,0.04411137]
[1748966325945,0.0401735,162.12,162.08,0.04411137]
[1748966327246,0.0401735,162.12,162.09,6.165]
[1748966327949,0.0401735,162.12,162.08,6.20971137]
[1748966328243,0.0401735,162.12,162.08,0.04411137]
[1748966328946,0.0401735,162.12,162.08,6.20971137]
[1748966329341,0.0401735,162.12,162.08,0.04411137]
[1748966330045,0.0401735,162.12,162.09,6.1652]
[1748966330442,6.2043735,162.12,162.09,6.1652]
[1748966330640,0.0401735,162.12,162.09,6.1652]
[1748966331453,0.0401735,162.12,162.1,6.1649]
[1748966332050,0.0401735,162.12,162.09,6.1652]
[1748966333249,0.0401735,162.12,162.1,6.1649]
[1748966333448,0.0401735,162.12,162.08,0.04411137]
[1748966333646,9.54505301,162.09,162.08,0.04411137]
[1748966333845,9.54505301,162.11,162.08,0.04411137]
[1748966334046,5.26825443,162.12,162.08,0.04411137]
[1748966334242,0.0401735,162.12,162.1,6.1646]
[1748966337952,0.0401735,162.12,162.09,6.1652]
[1748966338154,0.0401735,162.12,162.08,0.04411137]
[1748966338552,0.0401735,162.12,162.09,6.1653]
[1748966340450,6.2044735,162.12,162.09,6.1653]
[1748966340654,0.0401735,162.12,162.08,0.04411137]
[1748966341155,9.54505301,162.09,162.08,0.04411137]
[1748966341349,43.30505301,162.09,162.08,0.04411137]
[1748966341749,49.47045301,162.09,162.08,0.04411137]
[1748966343250,33.76,162.09,162.08,0.04411137]
[1748966344550,33.76,162.09,162.08,6.20991137]
[1748966344751,33.76,162.09,162.08,0.04411137]
[1748966347856,39.9253,162.09,162.08,0.04411137]
[1748966348047,38.97347445,162.09,162.01,4.2566]
[1748966348359,9.54505301,162.06,162.01,4.2566]
[1748966348545,9.54505301,162.06,162.03,6.1673]
[1748966348749,9.54505301,162.08,162.01,4.2566]
[1748966348951,0.0417507,162.06,162.03,0.0464745]
[1748966350152,0.0417507,162.06,162.03,6.2138745]
[1748966350858,0.0417507,162.06,162.04,6.1671]
[1748966351557,0.0417507,162.06,162.04,6.1672]
[1748966351952,0.0417507,162.06,162.05,6.1668]
[1748966352156,0.0417507,162.06,162.03,0.0464745]
[1748966353057,0.0417507,162.06,162.04,6.167]
[1748966354551,0.0417507,162.06,162.03,0.0464745]
[1748966354552,0.0417507,162.06,162.05,6.1668]
[1748966355062,0.0417507,162.06,162.04,6.167]
[1748966358963,6.2083507,162.06,162.03,6.2138745]
[1748966359463,5.23433867,162.05,162.03,6.2138745]
[1748966359660,6.2083507,162.06,162.03,6.2138745]
[1748966359855,11.40124947,162.05,162.03,6.2138745]
[1748966360057,6.1669,162.05,162.03,6.2138745]
[1748966360664,6.1669,162.05,162.03,0.0464745]
[1748966361753,15.75340371,162.06,162.03,6.2140745]
[1748966361958,5.23921344,162.05,162.03,6.2140745]
[1748966362165,15.75340371,162.06,162.03,6.2140745]
[1748966362367,5.23922301,162.05,162.03,6.2140745]
[1748966362567,15.75340371,162.06,162.03,6.2140745]
[1748966362762,5.23902908,162.05,162.03,6.2140745]
[1748966363066,5.23875709,162.04,162.03,6.2140745]
[1748966363463,5.23875709,162.04,162.03,0.0464745]
[1748966364065,6.1671,162.05,162.03,0.0464745]
[1748966364262,5.23821462,162.04,162.03,0.0464745]
[1748966364467,5.23767049,162.04,162.03,0.0464745]
[1748966365661,6.167,162.05,162.03,0.0464745]
[1748966367172,5.23693765,162.04,162.03,0.0464745]
[1748966369068,5.23989826,162.04,162.03,6.2140745]
[1748966369263,0.0417507,162.06,162.03,0.0464745]
[1748966369464,5.24055707,162.05,162.03,0.0464745]
[1748966369665,0.0417507,162.06,162.04,6.167]
[1748966369873,5.24112046,162.05,162.03,0.0464745]
[1748966370172,0.0417507,162.06,162.03,0.0464745]
[1748966370574,0.0417507,162.06,162.04,6.1672]
[1748966372374,0.0417507,162.06,162.05,6.1668]
[1748966372574,5.28191615,162.06,162.05,6.1668]
[1748966373976,5.28265893,162.06,162.05,6.1668]
[1748966376175,5.28265893,162.06,162.03,0.0464745]
[1748966376377,5.24090823,162.05,162.03,0.0464745]
[1748966376578,5.24090823,162.04,162.03,0.0464745]
[1748966376775,5.24090823,162.04,162.03,6.2140745]
[1748966377877,0.0417507,162.06,162.05,6.1668]
[1748966378080,5.28810322,162.06,162.03,0.0464745]
[1748966378278,5.24635252,162.05,162.03,0.0464745]
[1748966378478,5.24635252,162.04,162.03,6.2140745]
[1748966381881,0.0417507,162.06,162.05,6.1668]
[1748966382087,5.28722662,162.06,162.05,6.1668]
[1748966385389,5.74677661,162.12,162.05,5.59296957]
[1748966385589,5.74677661,162.12,162.08,9.54505301]
[1748966386083,5.74677661,162.13,162.1,6.1647]
[1748966386289,5.7865504,162.13,162.1,6.20892884]
[1748966386489,5.78847353,162.13,162.1,6.20892884]
[1748966387589,5.78847353,162.13,162.11,6.1645]
[1748966387790,5.78847353,162.13,162.1,0.04422884]
[1748966388298,5.78847353,162.13,162.11,6.1643]
[1748966388479,0.03977379,162.13,162.11,6.1643]
[1748966388795,5.78847353,162.13,162.11,6.1643]
[1748966389388,0.03977379,162.13,162.11,6.1643]
[1748966390293,0.03977379,162.13,162.1,0.04422884]
[1748966390488,0.03977379,162.13,162.1,9.58928185]
[1748966390685,0.03977379,162.13,162.11,6.1643]
[1748966390889,9.54505301,162.26,162.12,45.02328304]
[1748966391196,2.0012,162.26,162.18,9.54505301]
[1748966391399,2.0012,162.26,162.19,6.1613]
[1748966391400,6.1595,162.25,162.19,6.1613]
[1748966391698,33.52,162.24,162.19,6.1613]
[1748966391998,0.04292117,162.23,162.2,0.04076821]
[1748966392797,0.04292117,162.23,162.21,6.1607]
[1748966393090,0.04292117,162.23,162.2,0.04076821]
[1748966393892,0.04292117,162.23,162.22,6.1604]
[1748966401506,33.54292117,162.23,162.22,6.1604]
[1748966401707,0.04292117,162.23,162.22,6.1604]
[1748966407305,2.117e-05,162.23,162.22,6.1604]
[1748966410007,2.117e-05,162.23,162.22,12.3204]
[1748966414802,33.36,162.35,162.23,12.3189]
[1748966415004,33.36,162.38,162.24,33.36]
[1748966415207,6.1539,162.39,162.25,0.7894]
[1748966415416,33.36,162.38,162.34,6.1553]
[1748966415609,33.36,162.38,162.29,33.36]
[1748966415911,0.04302861,162.35,162.33,6.1556]
[1748966416213,0.04302861,162.35,162.32,0.0459764]
[1748966417013,0.04302861,162.35,162.34,6.1555]
[1748966417408,33.36,162.41,162.32,0.0459764]
[1748966417716,33.36,162.41,162.3,2.0056]
[1748966418109,6.1539,162.39,162.34,6.1552]
[1748966418316,6.2072,162.42,162.3,2.0056]
[1748966418517,0.04522549,162.38,162.34,0.04395529]
[1748966419011,0.04522549,162.38,162.35,6.1551]
[1748966419511,0.04522549,162.38,162.36,6.1545]
[1748966419716,0.04522549,162.38,162.34,0.04395529]
[1748966420119,0.04522549,162.38,162.37,6.1544]
[1748966420721,0.04522549,162.38,162.36,6.1547]
[1748966421318,0.04522549,162.38,162.34,0.04395529]
[1748966422112,0.04522549,162.38,162.36,6.1546]
[1748966422307,0.04522549,162.38,162.34,0.04395529]
[1748966422723,0.04522549,162.38,162.36,6.1546]
[1748966423511,0.04522549,162.38,162.34,0.04395529]
[1748966423918,0.04522549,162.38,162.36,6.1547]
[1748966424712,0.04522549,162.38,162.37,6.1544]
[1748966426617,1.993,162.42,162.41,6.1529]
[1748966427322,11.51186715,162.42,162.35,9.51886715]
[1748966427526,9.56169403,162.4,162.37,0.04505396]
[1748966427718,9.51886715,162.38,162.34,6.1553]
[1748966428713,9.51886715,162.38,162.34,0.03880517]
[1748966428921,9.51886715,162.36,162.27,42.85886715]
[1748966429116,9.51886715,162.34,162.3,6.1568]
[1748966429615,9.51886715,162.34,162.3,6.1569]
[1748966430126,9.56169534,162.34,162.3,0.04711049]
[1748966430422,9.56169534,162.34,162.31,6.1565]
[1748966430619,9.56169534,162.34,162.3,0.04711049]
[1748966431217,6.156,162.33,162.3,0.04711049]
[1748966431620,9.56169534,162.34,162.3,0.04711049]
[1748966431822,6.156,162.33,162.3,0.04711049]
[1748966432020,9.56169534,162.34,162.3,0.04711049]
[1748966432220,9.51886715,162.32,162.29,6.1572]
[1748966432620,9.51886715,162.3,162.27,6.158]
[1748966433226,9.56563544,162.3,162.28,6.1578]
[1748966433423,9.56563544,162.3,162.27,0.04149627]
[1748966434531,9.56563544,162.3,162.27,6.19949627]
[1748966434727,9.56563544,162.3,162.27,0.04149627]
[1748966435229,9.56563544,162.3,162.23,9.51886715]
[1748966435524,2.1714,162.29,162.23,9.51886715]
[1748966435729,2.1714,162.29,162.24,6.159]
[1748966435730,33.34,162.28,162.24,6.159]
[1748966435937,33.34,162.28,162.23,9.51886715]
[1748966436325,33.34,162.28,162.24,0.04658322]
[1748966436520,33.34,162.28,162.18,156.6427727]
[1748966436521,9.51886715,162.26,162.18,156.6427727]
[1748966436726,15.67846715,162.24,162.19,6.161]
[1748966436922,49.03846715,162.24,162.19,6.161]
[1748966437125,42.87886715,162.24,162.16,9.51886715]
[1748966437528,9.56547834,162.22,162.18,0.04162608]
[1748966438531,15.72587834,162.22,162.18,0.04162608]
[1748966438833,17.88627834,162.22,162.18,0.04162608]
[1748966439129,11.72587834,162.22,162.18,0.04162608]
[1748966439333,9.51886715,162.2,162.12,42.87886715]
[1748966439532,9.51886715,162.18,162.1,9.51886715]
[1748966440234,0.04103068,162.16,162.13,6.1632]
[1748966441123,0.04103068,162.16,162.14,6.1631]
[1748966442635,0.04103068,162.16,162.15,6.1628]
[1748966443822,0.04103068,162.16,162.09,33.36]
[1748966444024,0.04103068,162.16,162.1,9.51886715]
[1748966444628,0.04103068,162.16,162.0,9.51886715]
[1748966444629,9.51886715,162.14,161.99,12.3377]
[1748966444935,0.04194119,162.08,162.06,9.51886715]
[1748966445130,9.51886715,162.14,162.1,6.1646]
[1748966445435,9.56348497,162.14,162.06,9.51886715]
[1748966445637,9.56348497,162.14,162.01,2.0566]
[1748966445638,9.51886715,162.12,162.01,2.0566]
[1748966445829,0.04479602,162.08,162.02,9.51886715]
[1748966446928,0.04479602,162.08,162.06,9.51886715]
[1748966447933,0.04479602,162.08,162.07,6.1659]
[1748966449730,9.602e-05,162.08,162.07,6.1659]
[1748966454541,33.28009602,162.08,162.05,2.8794]
[1748966454834,9.51886715,162.07,162.0,9.51886715]
[1748966455040,9.51886715,162.07,162.04,6.1668]
[1748966455433,9.51886715,162.07,162.0,9.51886715]
[1748966455636,9.51886715,162.07,162.03,6.1672]
[1748966455941,9.56292366,162.07,161.99,9.51886715]
[1748966456341,9.51886715,162.05,161.97,9.51886715]
[1748966456641,0.04125294,162.03,161.97,9.51886715]
[1748966457133,9.56012009,162.03,161.96,33.28]
[1748966457339,9.56012009,162.03,161.96,42.79886715]
[1748966457529,9.56012009,162.03,161.96,9.51886715]
[1748966457840,9.56012009,162.03,161.99,6.1686]
[1748966458341,0.04125294,162.03,162.01,6.1679]
[1748966458644,0.04125294,162.03,161.93,33.3]
[1748966458649,33.34113929,162.04,161.96,9.51886715]
[1748966458837,0.04637781,162.02,161.99,6.1687]
[1748966460239,0.04637781,162.02,162.0,6.1685]
[1748966460543,9.51886715,162.01,161.93,33.3]
[1748966460732,4.1854,162.03,161.92,9.51886715]
[1748966460733,9.56505911,161.99,161.92,9.51886715]
[1748966460936,9.56505911,161.99,161.81,65.60792312]
[1748966460937,9.51886715,161.95,161.8,532.76]
[1748966461237,0.04141087,161.89,161.88,6.1731]
[1748966461544,0.03968863,161.9,161.88,6.1731]
[1748966461736,0.03968863,161.9,161.89,6.1727]
[1748966462143,8.863e-05,161.9,161.89,6.1727]
[1748966464034,8.863e-05,161.9,161.88,0.04056472]
[1748966464636,8.863e-05,161.9,161.89,6.1727]
[1748966465635,2.0799,161.98,161.89,33.32]
[1748966465836,2.0799,161.98,161.92,15.95281029]
[1748966466136,2.0799,161.98,161.89,35.4171]
[1748966466335,2.0799,161.98,161.92,15.95281029]
[1748966466541,0.04727889,161.97,161.94,15.95281029]
[1748966466844,0.04727889,161.97,161.93,0.04065334]
[1748966467837,0.04727889,161.97,161.96,6.17]
[1748966469349,0.04727889,161.97,161.93,0.04065334]
[1748966470450,0.04727889,161.97,161.96,6.17]
[1748966471344,0.04727889,161.97,161.95,6.1704]
[1748966471744,0.04727889,161.97,161.93,0.04065334]
[1748966472148,0.04727889,161.97,161.96,6.17]
[1748966472350,0.04727889,161.97,161.93,0.04065334]
[1748966472744,0.04727889,161.97,161.95,6.1701]
[1748966473247,0.04727889,161.97,161.96,6.17]
[1748966478853,0.04727889,161.97,161.95,6.1703]
[1748966479047,0.04727889,161.97,161.93,0.04065334]
[1748966479447,16.00008918,161.97,161.94,6.1707]
[1748966479647,16.00008918,161.97,161.93,0.04065334]
[1748966479949,16.00008918,161.97,161.93,6.21155334]
[1748966480547,16.00008918,161.97,161.94,6.1708]
[1748966481257,0.04727889,161.97,161.93,0.04065334]
[1748966481745,0.04727889,161.97,161.96,6.17]
[1748966482851,0.04727889,161.97,161.94,6.1707]
[1748966483051,0.04727889,161.97,161.93,0.04065334]
[1748966483453,0.04727889,161.97,161.96,6.17]
[1748966489557,0.04727889,161.97,161.93,0.04065334]
[1748966490648,0.04727889,161.97,161.96,6.17]
[1748966490863,0.04727889,161.97,161.93,0.04065334]
[1748966491766,0.04727889,161.97,161.96,6.17]
[1748966496462,7.889e-05,161.97,161.96,6.17]
[1748966502265,7.889e-05,161.97,161.95,6.1703]
[1748966502864,7.889e-05,161.97,161.93,0.04065334]
[1748966503674,7.889e-05,161.97,161.95,6.1701]
[1748966503871,7.889e-05,161.97,161.93,0.04065334]
[1748966505765,7.889e-05,161.97,161.96,6.1701]
[1748966507278,7.889e-05,161.97,161.95,6.1702]
[1748966507477,7.889e-05,161.97,161.93,0.04065334]
[1748966508379,7.889e-05,161.97,161.95,6.1702]
[1748966508773,7.889e-05,161.97,161.93,0.04065334]
[1748966508972,7.889e-05,161.97,161.96,6.1701]
[1748966510679,5.00423716,161.97,161.96,6.1701]
[1748966511181,14.57154499,161.97,161.96,6.1701]
[1748966511573,14.57154499,161.97,161.95,6.1702]
[1748966511574,20.31384444,161.97,161.95,6.1702]
[1748966511775,20.31376555,161.96,161.93,0.04065334]
[1748966511976,9.56730783,161.94,161.93,0.04065334]
[1748966512179,14.5714661,161.94,161.92,6.1714]
[1748966512378,5.00415827,161.93,161.87,36.82180905]
[1748966512588,5.00415827,161.92,161.87,33.18]
[1748966512782,5.00415827,161.91,161.87,33.18]
[1748966512987,5.00415827,161.9,161.87,33.18]
[1748966513189,0.04664313,161.9,161.89,6.1725]
[1748966513480,5.04374957,161.9,161.89,6.1725]
[1748966514579,9.61395096,161.9,161.89,6.1725]
[1748966514776,9.61395096,161.9,161.87,0.04056333]
[1748966514777,14.6084527,161.9,161.87,0.04056333]
[1748966514977,9.56730783,161.88,161.87,0.04056333]
[1748966515178,4.99407642,161.88,161.87,6.21406333]
[1748966515389,14.56138425,161.88,161.87,6.21406333]
[1748966515592,9.56730783,161.88,161.87,0.04056333]
[1748966516484,4.98684354,161.89,161.87,0.04056333]
[1748966516686,0.04664313,161.9,161.87,0.04056333]
[1748966517289,0.04664313,161.9,161.87,0.00876477]
[1748966517591,5.03300195,161.9,161.87,0.00876477]
[1748966517991,0.04664313,161.9,161.89,6.1727]
[1748966520391,5.73399305,161.98,161.95,6.1701]
[1748966520595,5.73399305,161.98,161.89,42.74730783]
[1748966520596,4.98119628,161.97,161.92,9.56730783]
[1748966520888,4.98119628,161.99,161.92,9.56730783]
[1748966521094,4.98119628,161.98,161.97,6.1694]
[1748966521291,4.98119628,161.99,161.97,6.1694]
[1748966521485,9.61222428,162.0,161.97,6.1694]
[1748966521693,4.9787247,161.99,161.96,0.04330315]
[1748966521990,9.61222428,162.0,161.96,0.04330315]
[1748966522191,4.97905505,161.99,161.98,6.1693]
[1748966522390,4.97913903,161.99,161.98,6.1693]
[1748966522590,0.04491645,162.0,161.99,6.1689]
[1748966524393,4.97462243,162.04,162.02,6.1675]
[1748966524592,14.54193026,162.03,161.97,33.18]
[1748966524786,9.56730783,162.03,161.97,33.18]
[1748966525095,4.97462243,162.04,162.0,6.1683]
[1748966525394,4.97462243,162.03,162.0,6.21428239]
[1748966525795,4.97462243,162.03,162.0,0.04598239]
[1748966525989,5.0179223,162.04,162.0,0.04598239]
[1748966526189,5.01736536,162.04,162.0,0.04598239]
[1748966526384,0.04329987,162.04,162.0,6.21418239]
[1748966526692,5.01736536,162.04,162.0,0.04598239]
[1748966526989,4.97406549,162.03,162.0,0.04598239]
[1748966527198,4.97406549,162.02,162.0,0.04598239]
[1748966527386,4.97406549,162.02,161.94,49.1120276]
[1748966527589,11.14206549,162.02,161.98,6.1691]
[1748966527790,44.32206549,162.02,161.98,6.1691]
[1748966528194,6.1683,162.01,161.98,6.1691]
[1748966528492,6.1683,162.01,161.98,0.03949972]
[1748966528493,0.04553391,162.01,161.98,0.03949972]
[1748966528897,5.0195994,162.01,161.98,0.03949972]
[1748966529389,4.97406549,162.0,161.98,0.03949972]
[1748966529584,5.0195994,162.01,161.98,0.03949972]
[1748966529986,20.90449503,162.0,161.98,0.03949972]
[1748966530696,4.97246743,162.0,161.98,0.03949972]
[1748966530901,7.06380134,162.01,161.99,6.1689]
[1748966531595,7.06380134,162.01,161.98,0.03949972]
[1748966531988,6.1688,162.0,161.98,0.03949972]
[1748966532196,7.06380134,162.01,161.98,0.03949972]
[1748966532998,4.97246743,162.0,161.98,6.20849972]
[1748966533198,4.97246743,162.0,161.98,0.03949972]
[1748966533403,11.14126743,162.0,161.98,0.03949972]
[1748966533596,4.97246743,162.0,161.98,0.03949972]
[1748966533800,4.97461958,162.0,161.98,0.03949972]
[1748966533994,13.23435349,162.01,161.98,0.03949972]
[1748966534197,4.97461958,162.0,161.98,0.03949972]
[1748966535489,20.90664718,162.0,161.98,0.03949972]
[1748966535998,4.97461958,162.0,161.98,0.03949972]
[1748966536199,11.14351958,162.0,161.98,0.03949972]
[1748966536397,4.97461958,162.0,161.98,0.03949972]
[1748966536792,6.1689,161.99,161.98,0.03949972]
[1748966537496,6.1689,161.99,161.91,51.2917276]
[1748966537800,6.1694,161.98,161.91,51.2917276]
[1748966538610,0.04721573,161.96,161.93,0.02147892]
[1748966539596,6.1708,161.94,161.93,0.02147892]
[1748966540107,20.95287155,161.96,161.87,33.1]
[1748966540411,6.1716,161.93,161.87,33.1]
[1748966540713,6.1716,161.93,161.89,6.1724]
[1748966540910,6.1717,161.92,161.89,6.1724]
[1748966541405,0.04084302,161.92,161.87,33.1]
[1748966541999,0.04084302,161.92,161.9,6.1721]